[Event "CAT-chT Honor Division 2019"]
[Site "Catalonia"]
[Date "2019.02.23"]
[Round "6.7"]
[White "Gonzalez Vericat, Sergio"]
[Black "Morros Faura, Ricard"]
[Result "0-1"]
[ECO "A01"]
[WhiteElo "2122"]
[BlackElo "2189"]
[Annotator "NA"]
[PlyCount "82"]
[EventDate "2019.01.16"]
[EventType "team-tourn"]
[EventCountry "ESP"]
[SourceTitle "playchess.com"]
[Source "ChessBase"]
[SourceQuality "1"]
[WhiteTeam "Gerunda"]
[BlackTeam "Mollet"]
[TimeControl "5400+30"]

1. b3 e5 {[%emt 0:00:00]} 2. Bb2 {[%emt 0:00:00]} Nc6 {[%emt 0:00:09]} 3. e3 {[%emt 0:00:07]} Nf6 4. Bb5 {[%emt 0:00:27]} Bd6 {[%emt 0:01:17]} 5. Na3 Na5 {[%emt 0:01:11]} 6. Be2 {[%emt 0:00:43]} a6 {[%emt 0:02:12]} 7. c4 {[%emt 0:00:24]} O-O {[%emt 0:07:17]} 8. Nc2 {[%emt 0:03:33]} Re8 {[%emt 0:05:34]} 9. d4 {[%emt 0:10:03]} Nc6 {[%emt 0:10:08]} 10. c5 {[%emt 0:02:46]} Bf8 {[%emt 0:00:19]} 11. d5 {[%emt 0:15:34]} Ne7 {[%emt 0:01:31]} 12. Bc4 {[%emt 0:01:42]} Ng6 {[%emt 0:02:52]} 13. b4 {[%emt 0:02:38]} d6 {[%emt 0:02:54]} 14. cxd6 {[%emt 0:02:45]} Bxd6 {[%emt 0:00:08]} 15. Ne2 {[%emt 0:01:36]} Nh4 {[%emt 0:23:01]} 16. Rg1 {[%emt 0:09:52]} Bf5 {[%emt 0:08:06]} 17. a3 {[%emt 0:03:15]} Be4 {[%emt 0:03:42]} 18. f3 {[%emt 0:13:00]} Bxf3 19. gxf3 {[%emt 0:00:08]} Nxf3+ {[%emt 0:00:25]} 20. Kf2 {[%emt 0:00:19]} Nxh2 {[%emt 0:08:04]} 21. Ng3 {[%emt 0:02:54]} Nfg4+ {[%emt 0:03:09]} 22. Ke1 {[%emt 0:08:00]} Qh4 {[%emt 0:06:49]} 23. e4 {[%emt 0:05:17]} f5 {[%emt 0:00:02]} 24. Kd2 {[%emt 0:01:18]} fxe4 {[%emt 0:00:37]} 25. Nxe4 {[%emt 0:01:22]} Nf2 {[%emt 0:08:40]} 26. Nxf2 {[%emt 0:01:27]} Qxf2+ {[%emt 0:00:08]} 27. Kc3 {[%emt 0:01:01]} Rf8 {[%emt 0:01:02]} 28. Kb3 {[%emt 0:02:37]} Nf3 {[%emt 0:00:10]} 29. Rg4 {[%emt 0:01:57]} h5 {[%emt 0:00:34]} 30. Rg6 {[%emt 0:02:04]} Nd2+ {[%emt 0:00:19]} 31. Ka2 {[%emt 0:01:06]} Nxc4 {[%emt 0:00:26]} 32. Qxh5 {[%emt 0:00:14]} Qxc2 {[%emt 0:04:05]} 33. Rxg7+ {[%emt 0:00:06]} Kxg7 {[%emt 0:00:04]} 34. Rg1+ {[%emt 0:00:17]} Kf6 {[%emt 0:00:07]} 35. Qg5+ {[%emt 0:06:20]} Kf7 {[%emt 0:00:08]} 36. Rf1+ {[%emt 0:01:03]} Ke8 {[%emt 0:00:13]} 37. Rxf8+ {[%emt 0:01:58]} Kxf8 {[%emt 0:00:28]} 38. Qh6+ {[%emt 0:00:06]} Kf7 {[%emt 0:01:02]} 39. Qe6+ {[%emt 0:00:09]} Kg7 {[%emt 0:00:12]} 40. Qd7+ {[%emt 0:00:10]} Kf6 {[%emt 0:00:14]} 41. Qe6+ {[%emt 0:00:05]} Kg5 {[%emt 0:00:07]} 0-1

[Event "CAT-chT Honor Division 2019"]
[Site "Catalonia"]
[Date "2019.02.23"]
[Round "6.8"]
[White "Lazaro Pujol, Abel"]
[Black "Gallart Zafra, Jaume"]
[Result "0-1"]
[ECO "B84"]
[WhiteElo "2242"]
[BlackElo "2167"]
[Annotator "NA"]
[PlyCount "194"]
[EventDate "2019.01.16"]
[EventType "team-tourn"]
[EventCountry "ESP"]
[SourceTitle "playchess.com"]
[Source "ChessBase"]
[SourceQuality "1"]
[WhiteTeam "CE Olot"]
[BlackTeam "CE Tres Peons"]
[TimeControl "5400+30"]

1. e4 c5 2. Nf3 d6 3. d4 cxd4 4. Nxd4 Nf6 5. Nc3 a6 6. Be2 e6 7. Be3 Nbd7 8. g4 Nc5 9. f3 b5 10. a3 Bb7 11. Qd2 Rc8 12. O-O-O Qa5 13. Kb1 Qc7 14. g5 Nfd7 15. h4 g6 16. h5 Rg8 17. hxg6 hxg6 18. Rh7 Nb6 19. Ncxb5 axb5 20. Bxb5+ Ke7 21. b4 Ncd7 22. Bxd7 Qxd7 23. Nf5+ gxf5 24. Bxb6 fxe4 25. Bc5 Rxc5 26. bxc5 Qb5+ 27. Kc1 Qxc5 28. Qf4 Qxa3+ 29. Kb1 Bg7 30. Rxg7 Rxg7 31. Qf6+ Ke8 32. Qxg7 Bd5 33. Qb2 Qxb2+ 34. Kxb2 exf3 35. Kc3 Be4 36. Kd2 Kd7 37. c3 d5 38. Ra1 Kd6 39. Ra7 Bg6 40. Ke3 Bh5 41. Ra8 Ke5 42. Rh8 Bg6 43. Rh4 Kf5 44. Kxf3 Kxg5 45. Ra4 Kf5 46. c4 dxc4 47. Rxc4 Ke5 48. Ra4 Kf5 49. Rf4+ Kg5 50. Rg4+ Kf6 51. Ra4 e5 52. Ke3 Kf5 53. Rb4 Kg5 54. Rb5 f6 55. Ra5 Bf5 56. Rb5 Bh3 57. Kf3 Bd7 58. Rc5 Kf5 59. Ke3 Ke6 60. Ra5 f5 61. Ra6+ Kd5 62. Ra5+ Kd6 63. Ra6+ Bc6 64. Ra5 f4+ 65. Ke2 Be4 66. Kf2 Ke6 67. Ke2 Kf5 68. Kf2 Bc2 69. Rc5 Bd3 70. Kf3 Be4+ 71. Kf2 Ke6 72. Ra5 Bc6 73. Ke2 e4 74. Rh5 Be8 75. Ra5 Kf6 76. Rc5 Bd7 77. Ra5 Bf5 78. Ra8 Kg5 79. Rg8+ Bg6 80. Kf2 Kf5 81. Rf8+ Ke5 82. Ra8 e3+ 83. Ke2 Bh5+ 84. Kd3 Bg6+ 85. Ke2 Kf5 86. Rf8+ Ke4 87. Ra8 f3+ 88. Kf1 Bf5 89. Re8+ Kd3 90. Rd8+ Kc2 91. Rf8 Bd3+ 92. Ke1 Be4 93. Rf7 Kd3 94. Rd7+ Kc3 95. Rd8 Kc4 96. Rd7 f2+ 97. Ke2 Bd3+ 0-1

[Event "CAT-chT Honor Division 2019"]
[Site "Catalonia"]
[Date "2019.02.23"]
[Round "6.8"]
[White "Montilla Carrillo, Esteban"]
[Black "Domenech Plana, Jaume"]
[Result "1-0"]
[ECO "D45"]
[WhiteElo "2177"]
[BlackElo "2117"]
[Annotator "NA"]
[PlyCount "87"]
[EventDate "2019.01.16"]
[EventType "team-tourn"]
[EventCountry "ESP"]
[SourceTitle "playchess.com"]
[Source "ChessBase"]
[SourceQuality "1"]
[WhiteTeam "Mollet"]
[BlackTeam "Gerunda"]
[TimeControl "5400+30"]

1. d4 {[%emt 0:00:00]} d5 2. Nf3 {[%emt 0:00:00]} Nf6 3. c4 {[%emt 0:00:00]} c6 {[%emt 0:00:19]} 4. Nc3 {[%emt 0:00:18]} e6 5. e3 {[%emt 0:02:50]} Be7 {[%emt 0:02:23]} 6. Bd3 {[%emt 0:00:20]} dxc4 {[%emt 0:00:33]} 7. Bxc4 {[%emt 0:00:10]} O-O {[%emt 0:00:07]} 8. O-O {[%emt 0:07:10]} c5 {[%emt 0:04:48]} 9. Qe2 {[%emt 0:03:34]} a6 {[%emt 0:06:48]} 10. dxc5 {[%emt 0:16:42]} Bxc5 {[%emt 0:00:47]} 11. Rd1 {[%emt 0:00:05]} Qc7 {[%emt 0:00:15]} 12. a3 {[%emt 0:00:52]} b5 {[%emt 0:00:37]} 13. Ba2 {[%emt 0:01:47]} Bb7 {[%emt 0:02:09]} 14. b4 {[%emt 0:07:54]} Bd6 {[%emt 0:03:50]} 15. Bb2 {[%emt 0:00:47]} Nc6 {[%emt 0:04:50]} 16. Rac1 {[%emt 0:07:33]} Qe7 {[%emt 0:05:39]} 17. Bb1 {[%emt 0:05:36]} Ne5 {[%emt 0:03:33]} 18. Nxe5 {[%emt 0:05:28]} Bxe5 {[%emt 0:02:35]} 19. f4 {[%emt 0:18:29]} Bc7 {[%emt 0:06:22]} 20. Nxb5 {[%emt 0:09:14]} Bb6 {[%emt 0:06:46]} 21. Nd4 {[%emt 0:02:23]} Rac8 {[%emt 0:00:14]} 22. h3 {[%emt 0:00:35]} Rfd8 {[%emt 0:03:50]} 23. Kh2 {[%emt 0:00:20]} Rxc1 {[%emt 0:02:09]} 24. Rxc1 {[%emt 0:00:09]} Qd7 {[%emt 0:00:13]} 25. Nf3 {[%emt 0:03:17]} Ne4 {[%emt 0:04:07]} 26. Bd4 {[%emt 0:01:11]} Bxd4 {[%emt 0:01:11]} 27. Nxd4 {[%emt 0:00:21]} Rc8 {[%emt 0:03:48]} 28. Rxc8+ {[%emt 0:01:04]} Qxc8 {[%emt 0:00:06]} 29. Qc2 {[%emt 0:00:27]} Qxc2 {[%emt 0:00:10]} 30. Bxc2 {[%emt 0:00:09]} Nd2 {[%emt 0:01:34]} 31. Bd3 {[%emt 0:00:26]} Kf8 {[%emt 0:00:53]} 32. Kg1 {[%emt 0:00:18]} Ke7 {[%emt 0:00:43]} 33. Kf2 {[%emt 0:00:22]} Kd6 {[%emt 0:03:21]} 34. g3 {[%emt 0:01:13]} g6 {[%emt 0:00:34]} 35. Ke2 {[%emt 0:01:34]} Ne4 {[%emt 0:00:10]} 36. Bxe4 {[%emt 0:00:12]} Bxe4 {[%emt 0:00:06]} 37. Nb3 {[%emt 0:00:44]} Bd5 {[%emt 0:02:00]} 38. Nc5 {[%emt 0:00:27]} Kc6 {[%emt 0:00:16]} 39. e4 {[%emt 0:01:00]} Bc4+ {[%emt 0:00:12]} 40. Kd2 {[%emt 0:00:07]} a5 {[%emt 0:00:37]} 41. Kc3 {[%emt 0:00:04]} Bf1 {[%emt 0:00:12]} 42. h4 {[%emt 0:00:27]} axb4+ {[%emt 0:00:47]} 43. axb4 {[%emt 0:01:37]} Bb5 {[%emt 0:05:14]} 44. Kd4 {[%emt 0:01:47]} 1-0

[Event "CAT-chT Honor Division 2019"]
[Site "Catalonia"]
[Date "2019.02.23"]
[Round "6.9"]
[White "Aranda Flores, Jordi"]
[Black "Pinol Clapera, David"]
[Result "1-0"]
[ECO "E65"]
[WhiteElo "2158"]
[BlackElo "2135"]
[Annotator "NA"]
[PlyCount "137"]
[EventDate "2019.01.16"]
[EventType "team-tourn"]
[EventCountry "ESP"]
[SourceTitle "playchess.com"]
[Source "ChessBase"]
[SourceQuality "1"]
[WhiteTeam "CE Tres Peons"]
[BlackTeam "CE Olot"]
[TimeControl "5400+30"]

1. Nf3 Nf6 2. c4 g6 3. b3 Bg7 4. Bb2 O-O 5. g3 d6 6. d4 Nbd7 7. Bg2 c5 8. Nc3 Rb8 9. O-O a6 10. a4 e5 11. dxc5 e4 12. Ng5 e3 13. f4 Nxc5 14. b4 Ne6 15. Nf3 Qb6 16. Qb3 a5 17. Nd5 Nxd5 18. cxd5 Nc5 19. Qxe3 axb4 20. Bxg7 Kxg7 21. Qd4+ Kg8 22. Rfb1 b3 23. Nd2 Qa6 24. e4 Bd7 25. Bf1 Qa5 26. Nxb3 Nxb3 27. Rxb3 Rfc8 28. Qb4 Qc7 29. Qd2 Ra8 30. Qb4 b5 31. a5 Qa7+ 32. Kh1 Rc5 33. Qd2 Qc7 34. Bd3 Ra7 35. Rbb1 f5 36. exf5 gxf5 37. Rc1 b4 38. Be2 Raxa5 39. Rab1 Bc8 40. Qe3 Ra3 41. Qe8+ Kg7 42. Re1 Qf7 43. Qxf7+ Kxf7 44. Rxb4 Ra7 45. Bh5+ Kf6 46. Rd4 Ra2 47. Re2 Rxe2 48. Bxe2 Bb7 49. Bf3 h6 50. Rd2 Rb5 51. Kg2 Rb3 52. Re2 Kf7 53. Bh5+ Kg8 54. Re8+ Kg7 55. Re7+ Kf8 56. Rf7+ Kg8 57. Rxf5 Rb2+ 58. Kf3 Rxh2 59. Bf7+ Kg7 60. Be6 Ba6 61. Rf7+ Kg6 62. Rd7 Be2+ 63. Ke3 Bd1 64. Rxd6 Kg7 65. Rd7+ Kf8 66. Kd4 Rg2 67. Ke5 Ba4 68. Rf7+ Ke8 69. Rg7 1-0

[Event "CAT-chT Honor Division 2019"]
[Site "Catalonia"]
[Date "2019.02.23"]
[Round "6.9"]
[White "Mundet Riera, Jaume"]
[Black "Garcia Marin, Guillem"]
[Result "1-0"]
[ECO "B07"]
[WhiteElo "2090"]
[BlackElo "2067"]
[Annotator "NA"]
[PlyCount "87"]
[EventDate "2019.01.16"]
[EventType "team-tourn"]
[EventCountry "ESP"]
[SourceTitle "playchess.com"]
[Source "ChessBase"]
[SourceQuality "1"]
[WhiteTeam "Gerunda"]
[BlackTeam "Mollet"]
[TimeControl "5400+30"]

1. d4 {[%emt 0:00:24]} d6 2. e4 {[%emt 0:01:52]} Nf6 {[%emt 0:00:23]} 3. Nc3 c6 {[%emt 0:00:35]} 4. f3 {[%emt 0:04:20]} e5 {[%emt 0:03:33]} 5. Nge2 {[%emt 0:00:38]} Be7 {[%emt 0:01:53]} 6. Be3 {[%emt 0:01:40]} b5 {[%emt 0:10:23]} 7. Qd2 {[%emt 0:03:45]} a6 {[%emt 0:08:04]} 8. g4 {[%emt 0:08:49]} b4 {[%emt 0:27:19]} 9. Na4 {[%emt 0:11:08]} Nbd7 {[%emt 0:04:16]} 10. Ng3 {[%emt 0:11:30]} Qa5 {[%emt 0:10:07]} 11. b3 {[%emt 0:00:19]} exd4 {[%emt 0:01:07]} 12. Bxd4 {[%emt 0:01:23]} c5 {[%emt 0:01:25]} 13. Be3 {[%emt 0:02:10]} Ne5 {[%emt 0:01:49]} 14. Bg2 {[%emt 0:00:57]} Rb8 {[%emt 0:18:47]} 15. Nb2 {[%emt 0:07:26]} h6 {[%emt 0:02:11]} 16. O-O {[%emt 0:02:19]} O-O {[%emt 0:01:47]} 17. h3 {[%emt 0:05:41]} c4 {[%emt 0:02:07]} 18. Nxc4 {[%emt 0:04:33]} Nxc4 {[%emt 0:00:17]} 19. bxc4 {[%emt 0:00:05]} Qc7 {[%emt 0:00:34]} 20. Nf5 Bxf5 {[%emt 0:00:23]} 21. gxf5 {[%emt 0:11:50]} Qxc4 {[%emt 0:00:53]} 22. Kh1 {[%emt 0:03:06]} Kh7 {[%emt 0:00:33]} 23. Rg1 {[%emt 0:03:07]} Rfc8 {[%emt 0:00:33]} 24. Rac1 {[%emt 0:03:26]} Qc3 {[%emt 0:00:55]} 25. Qf2 {[%emt 0:00:29]} Nh5 {[%emt 0:01:05]} 26. Bf1 {[%emt 0:02:02]} Qc6 {[%emt 0:00:54]} 27. Bd3 {[%emt 0:00:24]} Bf6 {[%emt 0:00:26]} 28. Rg4 {[%emt 0:02:43]} Rg8 {[%emt 0:00:29]} 29. Rcg1 {[%emt 0:00:41]} Rbe8 {[%emt 0:00:18]} 30. Qe2 {[%emt 0:01:09]} Bc3 {[%emt 0:00:25]} 31. Bxa6 {[%emt 0:01:59]} Re7 {[%emt 0:00:42]} 32. Bd3 {[%emt 0:00:49]} Nf6 {[%emt 0:00:29]} 33. Rh4 {[%emt 0:01:21]} d5 {[%emt 0:00:14]} 34. Qg2 {[%emt 0:00:23]} dxe4 {[%emt 0:00:40]} 35. fxe4 {[%emt 0:00:10]} Qb7 {[%emt 0:01:10]} 36. Qg5 {[%emt 0:00:38]} Nh5 {[%emt 0:00:40]} 37. Qxh5 {[%emt 0:00:18]} Qc6 {[%emt 0:00:25]} 38. Qg4 {[%emt 0:00:22]} Rge8 {[%emt 0:00:11]} 39. Qg2 {[%emt 0:00:30]} Bf6 {[%emt 0:00:34]} 40. Rg4 {[%emt 0:00:45]} Qc3 {[%emt 0:00:10]} 41. e5 {[%emt 0:01:52]} Qxe5 {[%emt 0:00:28]} 42. Bd4 {[%emt 0:00:13]} Qxd4 {[%emt 0:00:32]} 43. Rxd4 {[%emt 0:00:08]} Bxd4 {[%emt 0:00:04]} 44. f6+ {[%emt 0:00:05]} 1-0

[Event "CAT-chT Honor Division 2019"]
[Site "Catalonia"]
[Date "2019.02.23"]
[Round "6.10"]
[White "Serrat Rifa, Ernest"]
[Black "Marques Taltavull, Antonio"]
[Result "1-0"]
[ECO "C45"]
[WhiteElo "2124"]
[BlackElo "2142"]
[Annotator "NA"]
[PlyCount "123"]
[EventDate "2019.01.16"]
[EventType "team-tourn"]
[EventCountry "ESP"]
[SourceTitle "playchess.com"]
[Source "ChessBase"]
[SourceQuality "1"]
[WhiteTeam "CE Olot"]
[BlackTeam "CE Tres Peons"]
[TimeControl "5400+30"]

1. e4 d6 2. d4 Nf6 3. Bd3 e5 4. Ne2 Be7 5. c4 exd4 6. Nxd4 Nc6 7. Nxc6 bxc6 8. Nc3 O-O 9. O-O Re8 10. b3 Nd7 11. f4 Bf6 12. Bb2 Nc5 13. Bc2 Ne6 14. Qd2 Rb8 15. Rae1 Ba6 16. Bb1 Bd4+ 17. Kh1 Qf6 18. Rf3 Qh6 19. Ref1 Be5 20. g3 Nc5 21. Qe2 Bxc3 22. Bxc3 d5 23. e5 dxc4 24. bxc4 Qe6 25. Qc2 Rxb1 26. Rxb1 Bxc4 27. Kg1 Qd5 28. Qf2 Ne4 29. Qd4 Qxd4+ 30. Bxd4 Nd2 31. Rc3 Nxb1 32. Rxc4 Nd2 33. Rc3 Ne4 34. Rxc6 Re7 35. Bxa7 f5 36. a4 Kf7 37. Bb8 Re8 38. Rxc7+ Kg6 39. Rb7 Rd8 40. Rb2 Rd4 41. a5 Ra4 42. Bc7 h5 43. Kg2 h4 44. Bd8 hxg3 45. hxg3 Ra3 46. e6 Rxg3+ 47. Kh2 Ra3 48. Rg2+ Kh7 49. e7 Nf6 50. Re2 Ne8 51. Re6 Kg8 52. Re5 g6 53. Kg2 Kf7 54. Kf2 Kf6 55. Rc5 Kf7 56. Rc6 Kg7 57. a6 Kf7 58. Ke2 Kg7 59. Bb6 Kf7 60. Bc5 Ra4 61. a7 Ng7 62. Rc8 1-0

[Event "CAT-chT Honor Division 2019"]
[Site "Catalonia"]
[Date "2019.02.23"]
[Round "6.10"]
[White "Fernandez Lozano, Francesc"]
[Black "Carrasco Holgado, David"]
[Result "1/2-1/2"]
[ECO "A80"]
[WhiteElo "1972"]
[BlackElo "2065"]
[Annotator "NA"]
[PlyCount "74"]
[EventDate "2019.01.16"]
[EventType "team-tourn"]
[EventCountry "ESP"]
[SourceTitle "playchess.com"]
[Source "ChessBase"]
[SourceQuality "1"]
[WhiteTeam "Mollet"]
[BlackTeam "Gerunda"]
[TimeControl "5400+30"]

1. d4 {[%emt 0:00:00]} f5 2. Bg5 {[%emt 0:00:00]} h6 {[%emt 0:02:24]} 3. Bh4 g5 {[%emt 0:00:39]} 4. Bg3 {[%emt 0:00:16]} Nf6 {[%emt 0:03:02]} 5. e3 {[%emt 0:00:31]} d6 {[%emt 0:02:13]} 6. h4 {[%emt 0:02:53]} g4 {[%emt 0:01:37]} 7. Nc3 {[%emt 0:03:36]} Nh5 {[%emt 0:04:49]} 8. Nge2 {[%emt 0:00:50]} Bg7 {[%emt 0:04:27]} 9. Qd3 {[%emt 0:03:33]} Nc6 {[%emt 0:03:22]} 10. O-O-O {[%emt 0:03:26]} e6 {[%emt 0:10:18]} 11. f3 {[%emt 0:09:47]} Qf6 {[%emt 0:06:40]} 12. Nb5 {[%emt 0:04:02]} Kd8 {[%emt 0:22:31]} 13. Be1 {[%emt 0:04:34]} a6 {[%emt 0:01:12]} 14. Na3 {[%emt 0:01:02]} Bd7 {[%emt 0:02:44]} 15. c3 {[%emt 0:12:17]} Rf8 {[%emt 0:04:01]} 16. Nc2 {[%emt 0:09:01]} Be8 {[%emt 0:06:25]} 17. Kb1 {[%emt 0:07:08]} Ke7 {[%emt 0:04:54]} 18. Ng3 {[%emt 0:03:49]} Rd8 {[%emt 0:02:46]} 19. Be2 {[%emt 0:01:17]} Nxg3 {[%emt 0:02:07]} 20. Bxg3 {[%emt 0:00:08]} h5 {[%emt 0:00:56]} 21. Bf4 {[%emt 0:06:07]} Bh6 {[%emt 0:00:11]} 22. Bxh6 {[%emt 0:01:05]} Qxh6 {[%emt 0:00:04]} 23. f4 {[%emt 0:00:20]} d5 {[%emt 0:01:31]} 24. g3 {[%emt 0:01:44]} Kf6 {[%emt 0:01:40]} 25. Ne1 {[%emt 0:01:13]} Qg7 {[%emt 0:01:05]} 26. Qc2 {[%emt 0:00:07]} Ra8 {[%emt 0:02:45]} 27. Kc1 {[%emt 0:00:12]} Qe7 {[%emt 0:00:41]} 28. Kd2 {[%emt 0:00:48]} Na5 {[%emt 0:02:19]} 29. b3 {[%emt 0:00:52]} Bb5 {[%emt 0:00:58]} 30. Nd3 {[%emt 0:05:04]} Bxd3 {[%emt 0:00:23]} 31. Bxd3 {[%emt 0:00:07]} b5 {[%emt 0:02:51]} 32. Rb1 {[%emt 0:02:52]} Rfc8 {[%emt 0:01:14]} 33. Qb2 {[%emt 0:01:30]} Nb7 {[%emt 0:00:49]} 34. Ke2 {[%emt 0:03:02]} Nd6 {[%emt 0:01:12]} 35. Qa3 {[%emt 0:02:33]} Ne4 {[%emt 0:01:03]} 36. Qxe7+ {[%emt 0:00:09]} Kxe7 {[%emt 0:00:02]} 37. Bxe4 {[%emt 0:00:08]} fxe4 1/2-1/2

[Event "CAT-chT Honor Division 2019"]
[Site "Catalonia"]
[Date "2019.03.02"]
[Round "7.7"]
[White "Hernando Rodrigo, Julio Antonio"]
[Black "Obon Temprano, Sergi"]
[Result "1/2-1/2"]
[ECO "D12"]
[WhiteElo "2308"]
[BlackElo "2273"]
[Annotator "NA RC"]
[PlyCount "68"]
[EventDate "2019.01.16"]
[EventType "team-tourn"]
[EventCountry "ESP"]
[SourceTitle "playchess.com"]
[Source "ChessBase"]
[SourceQuality "1"]
[WhiteTeam "BCN"]
[BlackTeam "Barbera"]
[TimeControl "5400+30"]

1. d4 {[%emt 0:01:38]} d5 {[%emt 0:00:00]} 2. Nf3 {[%emt 0:00:31]} Nf6 {[%emt 0:00:00]} 3. c4 {[%emt 0:00:06]} c6 {[%emt 0:00:00]} 4. e3 {[%emt 0:01:55]} Bf5 {[%emt 0:00:05]} 5. Nc3 {[%emt 0:00:11]} e6 {[%emt 0:00:10]} 6. Bd3 {[%emt 0:00:09]} Bxd3 {[%emt 0:00:17]} 7. Qxd3 {[%emt 0:00:07]} Nbd7 {[%emt 0:00:53]} 8. O-O {[%emt 0:00:16]} Bb4 {[%emt 0:00:27]} 9. Bd2 {[%emt 0:00:25]} a5 {[%emt 0:01:27]} 10. a3 {[%emt 0:00:25]} Be7 {[%emt 0:00:27]} 11. Rfd1 {[%emt 0:10:13]} O-O {[%emt 0:05:22]} 12. e4 {[%emt 0:00:57]} dxe4 {[%emt 0:03:17]} 13. Nxe4 {[%emt 0:00:07]} Nxe4 {[%emt 0:03:31]} 14. Qxe4 {[%emt 0:00:06]} Qc7 {[%emt 0:03:37]} 15. a4 {[%emt 0:10:20]} Rfd8 {[%emt 0:06:27]} 16. Bf4 {[%emt 0:14:29]} Bd6 {[%emt 0:04:48]} 17. Bg5 {[%emt 0:02:11]} Re8 {[%emt 0:00:52]} 18. c5 {[%emt 0:02:25]} Be7 {[%emt 0:03:37]} 19. Bf4 {[%emt 0:01:35]} Qc8 {[%emt 0:02:09]} 20. Qc2 {[%emt 0:02:17]} Nf6 {[%emt 0:03:03]} 21. Ne5 {[%emt 0:01:10]} Nd5 {[%emt 0:03:25]} 22. Bg3 {[%emt 0:01:03]} Bd8 {[%emt 0:08:43]} 23. Ra3 {[%emt 0:03:01]} Bc7 {[%emt 0:04:29]} 24. Nc4 {[%emt 0:00:24]} Rd8 {[%emt 0:03:30]} 25. Nd6 {[%emt 0:14:35]} Bxd6 {[%emt 0:04:34]} 26. Bxd6 {[%emt 0:00:11]} Rd7 {[%emt 0:05:21]} 27. Rh3 {[%emt 0:04:02]} h6 {[%emt 0:00:48]} 28. Re1 {[%emt 0:00:28]} Qd8 {[%emt 0:06:04]} 29. Qb3 {[%emt 0:01:38]} Ne7 {[%emt 0:06:14]} 30. Rxe6 {[%emt 0:11:37]} Nf5 {[%emt 0:00:51]} 31. Re1 {[%emt 0:00:14]} Nxd6 {[%emt 0:04:04]} 32. cxd6 {[%emt 0:00:08]} Qf6 {[%emt 0:01:09]} 33. d5 {[%emt 0:06:50]} cxd5 {[%emt 0:03:03]} 34. Qxd5 {[%emt 0:02:01]} Qxd6 {[%emt 0:01:35]} 1/2-1/2

[Event "CAT-chT Honor Division 2019"]
[Site "Catalonia"]
[Date "2019.03.02"]
[Round "7.8"]
[White "Codina Garcia, Jose"]
[Black "Plasencia Martinez, Victor"]
[Result "1/2-1/2"]
[ECO "D01"]
[WhiteElo "2081"]
[BlackElo "2177"]
[Annotator "NA RC"]
[PlyCount "47"]
[EventDate "2019.01.16"]
[EventType "team-tourn"]
[EventCountry "ESP"]
[SourceTitle "playchess.com"]
[Source "ChessBase"]
[SourceQuality "1"]
[WhiteTeam "Lleida"]
[BlackTeam "Escola Salou"]
[TimeControl "5400+30"]

1. d4 Nf6 2. Nc3 d5 3. Bg5 Nbd7 4. e3 e6 5. Nf3 Be7 6. Bd3 O-O 7. O-O c5 8. Re1 c4 9. Bf1 b5 10. a3 h6 11. Bxf6 Nxf6 12. e4 b4 13. e5 Nh7 14. Nb1 Qb6 15. axb4 Qxb4 16. Ra2 Bd7 17. Nc3 a5 18. Qa1 Rfb8 19. h4 a4 20. Re3 Qb6 21. g3 g5 22. hxg5 Nxg5 23. Qd1 Qd8 24. Nb1 1/2-1/2

[Event "CAT-chT Honor Division 2019"]
[Site "Catalonia"]
[Date "2019.03.02"]
[Round "7.9"]
[White "Chueca Forcen, Alberto"]
[Black "Martinez Ramirez, Erik"]
[Result "1-0"]
[ECO "D85"]
[WhiteElo "2270"]
[BlackElo "2222"]
[Annotator "NA"]
[PlyCount "61"]
[EventDate "2019.01.16"]
[EventType "team-tourn"]
[EventCountry "ESP"]
[SourceTitle "playchess.com"]
[Source "ChessBase"]
[SourceQuality "1"]
[WhiteTeam "BCN"]
[BlackTeam "Barbera"]
[TimeControl "5400+30"]

1. d4 {[%emt 0:00:00]} Nf6 {[%emt 0:00:00]} 2. c4 {[%emt 0:00:00]} g6 {[%emt 0:00:02]} 3. Nc3 {[%emt 0:00:00]} d5 {[%emt 0:00:05]} 4. cxd5 {[%emt 0:00:08]} Nxd5 {[%emt 0:00:07]} 5. e4 {[%emt 0:00:08]} Nxc3 {[%emt 0:00:15]} 6. bxc3 {[%emt 0:00:02]} Bg7 {[%emt 0:00:28]} 7. Nf3 {[%emt 0:00:43]} c5 {[%emt 0:00:58]} 8. Be3 {[%emt 0:00:39]} O-O {[%emt 0:05:49]} 9. Be2 {[%emt 0:00:58]} Nc6 {[%emt 0:03:42]} 10. O-O {[%emt 0:04:34]} cxd4 {[%emt 0:02:08]} 11. cxd4 {[%emt 0:00:03]} Bg4 {[%emt 0:01:36]} 12. d5 {[%emt 0:00:32]} Bxa1 {[%emt 0:00:11]} 13. Qxa1 {[%emt 0:00:16]} Na5 {[%emt 0:01:14]} 14. Bh6 {[%emt 0:00:30]} f6 {[%emt 0:00:06]} 15. Bxf8 {[%emt 0:00:53]} Kxf8 {[%emt 0:01:59]} 16. Nd4 {[%emt 0:06:11]} Bxe2 {[%emt 0:04:22]} 17. Ne6+ {[%emt 0:01:53]} Kg8 {[%emt 0:00:06]} 18. Nxd8 {[%emt 0:00:10]} Bxf1 {[%emt 0:00:45]} 19. Qxf1 {[%emt 0:00:03]} Rxd8 {[%emt 0:00:15]} 20. Qb5 {[%emt 0:00:49]} b6 {[%emt 0:04:01]} 21. Qa6 {[%emt 0:00:26]} Ra8 {[%emt 0:00:15]} 22. f4 {[%emt 0:00:40]} Kf7 {[%emt 0:00:34]} 23. Kf2 {[%emt 0:00:18]} Ke8 {[%emt 0:06:23]} 24. Ke3 {[%emt 0:04:08]} Kd7 {[%emt 0:00:09]} 25. g4 {[%emt 0:04:05]} h6 {[%emt 0:01:29]} 26. e5 {[%emt 0:01:43]} g5 {[%emt 0:03:23]} 27. fxg5 {[%emt 0:03:30]} hxg5 {[%emt 0:02:47]} 28. Qb5+ {[%emt 0:00:29]} Kc7 {[%emt 0:01:49]} 29. d6+ {[%emt 0:01:42]} exd6 {[%emt 0:00:09]} 30. exf6 {[%emt 0:00:10]} Nb7 {[%emt 0:04:57]} 31. f7 {[%emt 0:01:47]} 1-0

[Event "CAT-chT Honor Division 2019"]
[Site "Catalonia"]
[Date "2019.03.02"]
[Round "7.9"]
[White "Plachkinova, Tatjana"]
[Black "Sole Gonzalez, Edgar"]
[Result "1/2-1/2"]
[ECO "D36"]
[WhiteElo "2059"]
[BlackElo "1971"]
[Annotator "NA"]
[PlyCount "63"]
[EventDate "2019.01.16"]
[EventType "team-tourn"]
[EventCountry "ESP"]
[SourceTitle "playchess.com"]
[Source "ChessBase"]
[SourceQuality "1"]
[WhiteTeam "Escola Salou"]
[BlackTeam "Lleida"]
[TimeControl "5400+30"]

1. d4 d5 2. c4 e6 3. Nc3 Nf6 4. cxd5 exd5 5. Qc2 Nbd7 6. Bg5 Be7 7. e3 c6 8. Bd3 O-O 9. Nf3 Re8 10. O-O h6 11. Bh4 Ne4 12. Bxe7 Qxe7 13. Rab1 Ndf6 14. Ne5 Bf5 15. b4 Nxc3 16. Qxc3 Bxd3 17. Qxd3 Nd7 18. Nxd7 Qxd7 19. b5 Rac8 20. h3 Rc7 21. Rfc1 Rec8 22. b6 axb6 23. Rxb6 c5 24. dxc5 Rxc5 25. Rxc5 Rxc5 26. Rb1 Qc7 27. g3 Rc1+ 28. Rxc1 Qxc1+ 29. Kg2 Qc6 30. Qd4 Qc4 31. Qe4 Qc6 32. Qd4 1/2-1/2